[Event "Titled Tuesday Blitz July 18 Early 2023"]
[White "Melikhov, Evgeny V."]
[Black "Samarth J Rao"]
[WhiteFideId "4122046"]
[BlackFideId "46652370"]
[WhiteElo "2406"]
[BlackElo "2284"]
[Result "1-0"]
[Round "11"]
[TimeControl "180+2"]
[Date "2023.07.18"]
[WhiteClock "0:00:35"]
[BlackClock "0:00:09"]
[Board "111"]

1. d4 {[%clk 0:03:00]}  d5 {[%clk 0:02:05]} 2. c4 {[%clk 0:02:59]}  e6 {[%clk 0:02:00]} 3. Nc3 {[%clk 0:02:59]}  c5 {[%clk 0:01:58]} 4. cxd5 {[%clk 0:02:57]}  exd5 {[%clk 0:01:55]} 5. Nf3 {[%clk 0:02:56]}  cxd4 {[%clk 0:01:53]} 6. Nxd4 {[%clk 0:02:55]}  Nf6 {[%clk 0:01:54]} 7. g3 {[%clk 0:02:51]}  Nc6 {[%clk 0:01:52]} 8. Bg2 {[%clk 0:02:49]}  Nxd4 {[%clk 0:01:50]} 9. Qxd4 {[%clk 0:02:49]}  Be6 {[%clk 0:01:51]} 10. O-O {[%clk 0:02:48]}  Be7 {[%clk 0:01:51]} 11. Qa4+ {[%clk 0:02:42]}  Bd7 {[%clk 0:01:48]} 12. Qd4 {[%clk 0:02:27]}  Bc6 {[%clk 0:01:46]} 13. a3 {[%clk 0:02:04]}  O-O {[%clk 0:01:45]} 14. b4 {[%clk 0:02:03]}  a6 {[%clk 0:01:43]} 15. Bb2 {[%clk 0:02:03]}  Re8 {[%clk 0:01:39]} 16. Rfd1 {[%clk 0:01:58]}  Bf8 {[%clk 0:01:35]} 17. Rac1 {[%clk 0:01:50]}  Qd6 {[%clk 0:01:31]} 18. e4 {[%clk 0:01:43]}  Rad8 {[%clk 0:01:27]} 19. exd5 {[%clk 0:01:33]}  Nxd5 {[%clk 0:01:20]} 20. Nxd5 {[%clk 0:01:27]}  Bxd5 {[%clk 0:01:21]} 21. Bxd5 {[%clk 0:01:17]}  Qg6 {[%clk 0:01:07]} 22. Qc4 {[%clk 0:01:03]}  b5 {[%clk 0:01:03]} 23. Qb3 {[%clk 0:01:02]}  Rd7 {[%clk 0:00:59]} 24. Bf3 {[%clk 0:00:57]}  Rde7 {[%clk 0:00:57]} 25. Kg2 {[%clk 0:00:55]}  h5 {[%clk 0:00:50]} 26. h4 {[%clk 0:00:54]}  Re6 {[%clk 0:00:45]} 27. Rd5 {[%clk 0:00:53]}  Rf6 {[%clk 0:00:33]} 28. Rg5 {[%clk 0:00:50]}  Rxf3 {[%clk 0:00:21]} 29. Qxf3 {[%clk 0:00:47]}  Qe6 {[%clk 0:00:19]} 30. Qxh5 {[%clk 0:00:42]}  Qe2 {[%clk 0:00:16]} 31. Qxe2 {[%clk 0:00:42]}  Rxe2 {[%clk 0:00:13]} 32. Bd4 {[%clk 0:00:40]}  Ra2 {[%clk 0:00:14]} 33. Rc8 {[%clk 0:00:37]}  f6 {[%clk 0:00:12]} 34. Bxf6 {[%clk 0:00:35]}  Kf7 {[%clk 0:00:11]} 35. Bxg7 {[%clk 0:00:34]}  Bxg7 {[%clk 0:00:07]} 36. Rc7+ {[%clk 0:00:34]}  Ke6 {[%clk 0:00:07]} 37. Rcxg7 {[%clk 0:00:34]}  Rxa3 {[%clk 0:00:07]} 38. h5 {[%clk 0:00:34]}  Rb3 {[%clk 0:00:08]} 39. h6 {[%clk 0:00:34]}  Rxb4 {[%clk 0:00:08]} 40. h7 {[%clk 0:00:35]}  a5 {[%clk 0:00:08]} 41. h8=Q {[%clk 0:00:35]}  a4 {[%clk 0:00:09]} 42. Qh6# {[%clk 0:00:35]} 1-0


[Site "https://www.chess.com"]

[Event "Titled Tuesday Blitz July 18 Early 2023"]
[White "Levitan, Ronit"]
[Black "Rodriguez Santiago, Jaime"]
[WhiteFideId "2815109"]
[BlackFideId "3100898"]
[WhiteElo "2263"]
[BlackElo "2367"]
[Result "1/2-1/2"]
[Round "11"]
[TimeControl "180+2"]
[Date "2023.07.18"]
[WhiteClock "0:00:45"]
[BlackClock "0:00:11"]
[Board "113"]

1. e4 {[%clk 0:02:59]}  c6 {[%clk 0:02:59]} 2. d4 {[%clk 0:02:48]}  d5 {[%clk 0:02:58]} 3. exd5 {[%clk 0:02:45]}  cxd5 {[%clk 0:02:57]} 4. c4 {[%clk 0:02:45]}  e6 {[%clk 0:02:54]} 5. Nc3 {[%clk 0:02:45]}  Nf6 {[%clk 0:02:54]} 6. Nf3 {[%clk 0:02:45]}  Be7 {[%clk 0:02:53]} 7. cxd5 {[%clk 0:02:45]}  Nxd5 {[%clk 0:02:52]} 8. Bd3 {[%clk 0:02:45]}  Nc6 {[%clk 0:02:47]} 9. O-O {[%clk 0:02:45]}  O-O {[%clk 0:02:47]} 10. Re1 {[%clk 0:02:45]}  Bf6 {[%clk 0:02:44]} 11. a3 {[%clk 0:02:44]}  h6 {[%clk 0:02:39]} 12. Bc2 {[%clk 0:02:44]}  Nce7 {[%clk 0:02:20]} 13. Qd3 {[%clk 0:02:43]}  Ng6 {[%clk 0:02:17]} 14. Ne5 {[%clk 0:02:36]}  Bxe5 {[%clk 0:02:15]} 15. dxe5 {[%clk 0:02:35]}  Re8 {[%clk 0:02:13]} 16. Nxd5 {[%clk 0:02:34]}  exd5 {[%clk 0:02:06]} 17. Bd2 {[%clk 0:02:23]}  Be6 {[%clk 0:01:53]} 18. Bc3 {[%clk 0:02:23]}  Rc8 {[%clk 0:01:42]} 19. Rad1 {[%clk 0:02:15]}  Qg5 {[%clk 0:01:25]} 20. Qg3 {[%clk 0:01:59]}  Qxg3 {[%clk 0:00:50]} 21. hxg3 {[%clk 0:02:00]}  Ne7 {[%clk 0:00:50]} 22. Ba4 {[%clk 0:01:51]}  Red8 {[%clk 0:00:49]} 23. Bd4 {[%clk 0:01:47]}  b6 {[%clk 0:00:49]} 24. Bb5 {[%clk 0:01:45]}  Nf5 {[%clk 0:00:45]} 25. b4 {[%clk 0:01:41]}  Nxd4 {[%clk 0:00:44]} 26. Rxd4 {[%clk 0:01:41]}  Rc2 {[%clk 0:00:42]} 27. a4 {[%clk 0:01:39]}  Rdc8 {[%clk 0:00:41]} 28. Red1 {[%clk 0:01:38]}  Rb2 {[%clk 0:00:39]} 29. R4d2 {[%clk 0:01:31]}  Rxd2 {[%clk 0:00:33]} 30. Rxd2 {[%clk 0:01:32]}  Rc1+ {[%clk 0:00:33]} 31. Kh2 {[%clk 0:01:31]}  Rb1 {[%clk 0:00:33]} 32. Rd4 {[%clk 0:01:31]}  Rb2 {[%clk 0:00:33]} 33. Kg1 {[%clk 0:01:30]}  Kf8 {[%clk 0:00:32]} 34. Bc6 {[%clk 0:01:24]}  Ke7 {[%clk 0:00:30]} 35. a5 {[%clk 0:01:18]}  bxa5 {[%clk 0:00:29]} 36. bxa5 {[%clk 0:01:19]}  Ra2 {[%clk 0:00:29]} 37. Bxd5 {[%clk 0:01:19]}  Rxa5 {[%clk 0:00:27]} 38. Bxe6 {[%clk 0:01:18]}  Kxe6 {[%clk 0:00:27]} 39. f4 {[%clk 0:01:19]}  Ra3 {[%clk 0:00:26]} 40. Kf2 {[%clk 0:01:17]}  a5 {[%clk 0:00:24]} 41. Rc4 {[%clk 0:01:18]}  a4 {[%clk 0:00:23]} 42. Rc6+ {[%clk 0:01:17]}  Kf5 {[%clk 0:00:22]} 43. Rc7 {[%clk 0:01:17]}  Ke4 {[%clk 0:00:20]} 44. Rxf7 {[%clk 0:01:16]}  Ra2+ {[%clk 0:00:20]} 45. Kg1 {[%clk 0:01:16]}  a3 {[%clk 0:00:20]} 46. Rxg7 {[%clk 0:01:13]}  Ra1+ {[%clk 0:00:20]} 47. Kh2 {[%clk 0:01:13]}  a2 {[%clk 0:00:21]} 48. Ra7 {[%clk 0:01:14]}  Kf5 {[%clk 0:00:21]} 49. Ra4 {[%clk 0:01:09]}  h5 {[%clk 0:00:20]} 50. Ra3 {[%clk 0:01:09]}  Kg4 {[%clk 0:00:17]} 51. e6 {[%clk 0:01:08]}  Re1 {[%clk 0:00:17]} 52. Rxa2 {[%clk 0:01:04]}  Rxe6 {[%clk 0:00:17]} 53. Ra5 {[%clk 0:01:05]}  Rg6 {[%clk 0:00:15]} 54. Rg5+ {[%clk 0:00:57]}  Rxg5 {[%clk 0:00:15]} 55. fxg5 {[%clk 0:00:58]}  Kxg5 {[%clk 0:00:14]} 56. Kh3 {[%clk 0:00:58]}  Kg6 {[%clk 0:00:13]} 57. Kh4 {[%clk 0:00:59]}  Kh6 {[%clk 0:00:14]} 58. g4 {[%clk 0:01:00]}  hxg4 {[%clk 0:00:14]} 59. Kxg4 {[%clk 0:01:00]}  Kg6 {[%clk 0:00:15]} 60. g3 {[%clk 0:01:01]}  Kh7 {[%clk 0:00:15]} 61. Kh5 {[%clk 0:01:01]}  Kh8 {[%clk 0:00:15]} 62. Kg6 {[%clk 0:00:58]}  Kg8 {[%clk 0:00:15]} 63. g4 {[%clk 0:00:58]}  Kh8 {[%clk 0:00:15]} 64. Kf7 {[%clk 0:00:58]}  Kh7 {[%clk 0:00:15]} 65. g5 {[%clk 0:00:59]}  Kh8 {[%clk 0:00:15]} 66. Kf6 {[%clk 0:00:54]}  Kh7 {[%clk 0:00:14]} 67. g6+ {[%clk 0:00:52]}  Kh8 {[%clk 0:00:12]} 68. Kf5 {[%clk 0:00:44]}  Kg8 {[%clk 0:00:11]} 69. Kg5 {[%clk 0:00:44]}  Kg7 {[%clk 0:00:11]} 70. Kf5 {[%clk 0:00:44]}  Kg8 {[%clk 0:00:11]} 71. Kf6 {[%clk 0:00:44]}  Kf8 {[%clk 0:00:10]} 72. g7+ {[%clk 0:00:44]}  Kg8 {[%clk 0:00:11]} 73. Kg6 {[%clk 0:00:45]} 1/2-1/2


[Site "https://www.chess.com"]

[Event "Titled Tuesday Blitz July 18 Early 2023"]
[White "Guevara Sanchez, Erick Marvin"]
[Black "Sovetbekova, Nurai"]
[WhiteFideId "6700136"]
[BlackFideId "13801910"]
[WhiteElo "2154"]
[BlackElo "2356"]
[Result "1-0"]
[Round "11"]
[TimeControl "180+2"]
[Date "2023.07.18"]
[WhiteClock "0:01:22"]
[BlackClock "0:00:02"]
[Board "115"]

1. e4 {[%clk 0:03:00]}  c5 {[%clk 0:02:59]} 2. d4 {[%clk 0:03:01]}  cxd4 {[%clk 0:02:59]} 3. c3 {[%clk 0:03:01]}  Nf6 {[%clk 0:02:59]} 4. e5 {[%clk 0:03:01]}  Nd5 {[%clk 0:02:59]} 5. cxd4 {[%clk 0:03:02]}  d6 {[%clk 0:02:59]} 6. f4 {[%clk 0:03:00]}  Nc6 {[%clk 0:02:58]} 7. Nf3 {[%clk 0:02:59]}  dxe5 {[%clk 0:02:57]} 8. fxe5 {[%clk 0:02:59]}  Bg4 {[%clk 0:02:56]} 9. Be2 {[%clk 0:02:51]}  e6 {[%clk 0:02:54]} 10. O-O {[%clk 0:02:50]}  Qb6 {[%clk 0:02:53]} 11. Nc3 {[%clk 0:02:45]}  Bxf3 {[%clk 0:02:47]} 12. Bxf3 {[%clk 0:02:41]}  Nxd4 {[%clk 0:02:47]} 13. Kh1 {[%clk 0:02:40]}  Nxc3 {[%clk 0:02:38]} 14. bxc3 {[%clk 0:02:39]}  Nxf3 {[%clk 0:02:39]} 15. Qxf3 {[%clk 0:02:39]}  Qc7 {[%clk 0:02:34]} 16. Rb1 {[%clk 0:02:32]}  Rb8 {[%clk 0:02:24]} 17. Be3 {[%clk 0:02:32]}  b6 {[%clk 0:02:19]} 18. Bd4 {[%clk 0:02:29]}  Rd8 {[%clk 0:02:06]} 19. h4 {[%clk 0:02:18]}  Rd7 {[%clk 0:02:05]} 20. Qg3 {[%clk 0:02:14]}  g6 {[%clk 0:01:58]} 21. h5 {[%clk 0:02:06]}  Bc5 {[%clk 0:01:48]} 22. h6 {[%clk 0:02:00]}  Bxd4 {[%clk 0:01:39]} 23. cxd4 {[%clk 0:02:01]}  Rxd4 {[%clk 0:01:39]} 24. Qf2 {[%clk 0:01:56]}  Rc4 {[%clk 0:01:28]} 25. Qf6 {[%clk 0:01:53]}  Rf8 {[%clk 0:01:16]} 26. Rbd1 {[%clk 0:01:49]}  Qe7 {[%clk 0:01:10]} 27. Rd3 {[%clk 0:01:37]}  Rh4+ {[%clk 0:00:57]} 28. Kg1 {[%clk 0:01:35]}  Rxh6 {[%clk 0:00:22]} 29. Rfd1 {[%clk 0:01:32]}  Qc5+ {[%clk 0:00:10]} 30. Qf2 {[%clk 0:01:28]}  Qxf2+ {[%clk 0:00:02]} 31. Kxf2 {[%clk 0:01:27]}  f5 {[%clk 0:00:03]} 32. Rd7 {[%clk 0:01:22]}  Rf7 {[%clk 0:00:02]} 33. Rd8+ {[%clk 0:01:22]}  Ke7 {[%clk 0:00:02]} 34. R1d7# {[%clk 0:01:22]} 1-0


[Site "https://www.chess.com"]

[Event "Titled Tuesday Blitz July 18 Early 2023"]
[White "Kev4444444444"]
[Black "Saucey, Michel"]
[BlackFideId "601845"]
[WhiteElo "2235"]
[BlackElo "2320"]
[Result "1-0"]
[Round "11"]
[TimeControl "180+2"]
[Date "2023.07.18"]
[WhiteClock "0:00:11"]
[BlackClock "0:00:08"]
[Board "118"]

1. d4 {[%clk 0:03:00]}  d5 {[%clk 0:02:59]} 2. c4 {[%clk 0:03:00]}  e6 {[%clk 0:02:59]} 3. Nf3 {[%clk 0:03:00]}  Nf6 {[%clk 0:02:58]} 4. g3 {[%clk 0:03:00]}  Bb4+ {[%clk 0:02:57]} 5. Nbd2 {[%clk 0:03:00]}  O-O {[%clk 0:02:55]} 6. a3 {[%clk 0:02:58]}  Be7 {[%clk 0:02:46]} 7. h4 {[%clk 0:02:54]}  c5 {[%clk 0:02:43]} 8. cxd5 {[%clk 0:02:51]}  exd5 {[%clk 0:02:42]} 9. Bh3 {[%clk 0:02:43]}  Bxh3 {[%clk 0:02:39]} 10. Rxh3 {[%clk 0:02:42]}  Nc6 {[%clk 0:02:36]} 11. Rh1 {[%clk 0:02:37]}  cxd4 {[%clk 0:02:32]} 12. Nb3 {[%clk 0:02:35]}  Ne4 {[%clk 0:02:21]} 13. Nfxd4 {[%clk 0:02:19]}  Bf6 {[%clk 0:02:20]} 14. Be3 {[%clk 0:02:18]}  Ne5 {[%clk 0:02:17]} 15. Nd2 {[%clk 0:02:00]}  Rc8 {[%clk 0:02:00]} 16. Nxe4 {[%clk 0:01:52]}  dxe4 {[%clk 0:02:00]} 17. Kf1 {[%clk 0:01:40]}  Qe7 {[%clk 0:01:48]} 18. Kg2 {[%clk 0:01:38]}  Rfd8 {[%clk 0:01:47]} 19. Qa4 {[%clk 0:01:29]}  Nc4 {[%clk 0:01:26]} 20. Qxa7 {[%clk 0:01:12]}  Ra8 {[%clk 0:01:21]} 21. Nf5 {[%clk 0:01:07]}  Qe5 {[%clk 0:01:05]} 22. Qc5 {[%clk 0:01:07]}  Nxb2 {[%clk 0:00:49]} 23. Qxe5 {[%clk 0:01:01]}  Bxe5 {[%clk 0:00:48]} 24. Rab1 {[%clk 0:00:51]}  Nc4 {[%clk 0:00:46]} 25. Rxb7 {[%clk 0:00:49]}  Rxa3 {[%clk 0:00:44]} 26. Rc1 {[%clk 0:00:42]}  Nxe3+ {[%clk 0:00:42]} 27. Nxe3 {[%clk 0:00:41]}  g6 {[%clk 0:00:39]} 28. Nc4 {[%clk 0:00:34]}  Rc8 {[%clk 0:00:39]} 29. Rc2 {[%clk 0:00:31]}  Ra6 {[%clk 0:00:23]} 30. Re7 {[%clk 0:00:16]}  Bf6 {[%clk 0:00:21]} 31. Rxe4 {[%clk 0:00:13]}  Rac6 {[%clk 0:00:20]} 32. f3 {[%clk 0:00:13]}  Bg7 {[%clk 0:00:20]} 33. Kf1 {[%clk 0:00:13]}  f5 {[%clk 0:00:19]} 34. Rf4 {[%clk 0:00:13]}  Be5 {[%clk 0:00:18]} 35. Nxe5 {[%clk 0:00:12]}  Rxc2 {[%clk 0:00:17]} 36. Nd7 {[%clk 0:00:12]}  Kf7 {[%clk 0:00:15]} 37. Ra4 {[%clk 0:00:12]}  R2c4 {[%clk 0:00:14]} 38. Rxc4 {[%clk 0:00:11]}  Rxc4 {[%clk 0:00:08]} 39. Ne5+ {[%clk 0:00:11]} 1-0


[Site "https://www.chess.com"]

[Event "Titled Tuesday Blitz July 18 Early 2023"]
[White "UgarteCesar"]
[Black "Zampronha, Wladimir Camilo"]
[BlackFideId "2103087"]
[WhiteElo "2202"]
[BlackElo "2284"]
[Result "1-0"]
[Round "11"]
[TimeControl "180+2"]
[Date "2023.07.18"]
[WhiteClock "0:02:51"]
[BlackClock "0:02:48"]
[Board "120"]

1. d4 {[%clk 0:03:00]}  Nf6 {[%clk 0:02:59]} 2. Bf4 {[%clk 0:03:00]}  e6 {[%clk 0:02:57]} 3. Nf3 {[%clk 0:03:00]}  c5 {[%clk 0:02:57]} 4. e3 {[%clk 0:03:00]}  d5 {[%clk 0:02:56]} 5. Nbd2 {[%clk 0:02:59]}  Nc6 {[%clk 0:02:55]} 6. c3 {[%clk 0:02:59]}  Bd6 {[%clk 0:02:55]} 7. Bg3 {[%clk 0:02:59]}  O-O {[%clk 0:02:55]} 8. Bd3 {[%clk 0:02:58]}  Qe7 {[%clk 0:02:54]} 9. Ne5 {[%clk 0:02:59]}  Nd7 {[%clk 0:02:53]} 10. f4 {[%clk 0:02:58]}  f6 {[%clk 0:02:50]} 11. Bxh7+ {[%clk 0:02:51]}  Kxh7 {[%clk 0:02:49]} 12. Qh5+ {[%clk 0:02:51]}  Kg8 {[%clk 0:02:48]} 13. Ng6 {[%clk 0:02:52]}  Qf7 {[%clk 0:02:48]} 14. Qh8# {[%clk 0:02:51]} 1-0


[Site "https://www.chess.com"]

[Event "Titled Tuesday Blitz July 18 Early 2023"]
[White "Sarkar, Justin"]
[Black "Goswami, Vedant"]
[WhiteFideId "2010011"]
[BlackFideId "5003725"]
[WhiteElo "2232"]
[BlackElo "2375"]
[Result "1/2-1/2"]
[Round "11"]
[TimeControl "180+2"]
[Date "2023.07.18"]
[WhiteClock "0:00:03"]
[BlackClock "0:00:04"]
[Board "126"]

1. e4 {[%clk 0:02:43]}  e5 {[%clk 0:02:56]} 2. f4 {[%clk 0:02:43]}  exf4 {[%clk 0:02:52]} 3. Nf3 {[%clk 0:02:42]}  Ne7 {[%clk 0:02:52]} 4. d4 {[%clk 0:02:40]}  d5 {[%clk 0:02:53]} 5. Nc3 {[%clk 0:02:40]}  dxe4 {[%clk 0:02:51]} 6. Nxe4 {[%clk 0:02:39]}  Nd5 {[%clk 0:02:51]} 7. Bd3 {[%clk 0:02:35]}  Be7 {[%clk 0:02:47]} 8. O-O {[%clk 0:02:33]}  O-O {[%clk 0:02:46]} 9. c4 {[%clk 0:02:26]}  Ne3 {[%clk 0:02:44]} 10. Bxe3 {[%clk 0:02:26]}  fxe3 {[%clk 0:02:45]} 11. Qe2 {[%clk 0:02:21]}  Nc6 {[%clk 0:02:38]} 12. Qxe3 {[%clk 0:02:15]}  Bg4 {[%clk 0:02:34]} 13. d5 {[%clk 0:02:06]}  Nb4 {[%clk 0:01:58]} 14. Ne5 {[%clk 0:01:37]}  Bh5 {[%clk 0:01:40]} 15. Bb1 {[%clk 0:01:22]}  Bd6 {[%clk 0:01:29]} 16. Nxd6 {[%clk 0:00:57]}  cxd6 {[%clk 0:01:26]} 17. Nd3 {[%clk 0:00:54]}  Nxd3 {[%clk 0:01:24]} 18. Bxd3 {[%clk 0:00:53]}  Re8 {[%clk 0:01:14]} 19. Qd4 {[%clk 0:00:51]}  Qg5 {[%clk 0:01:04]} 20. Rae1 {[%clk 0:00:42]}  a6 {[%clk 0:00:55]} 21. Rxe8+ {[%clk 0:00:18]}  Rxe8 {[%clk 0:00:53]} 22. Qf4 {[%clk 0:00:18]}  Qxf4 {[%clk 0:00:50]} 23. Rxf4 {[%clk 0:00:18]}  Re3 {[%clk 0:00:48]} 24. Rd4 {[%clk 0:00:15]}  b6 {[%clk 0:00:44]} 25. Kf2 {[%clk 0:00:13]}  Re5 {[%clk 0:00:41]} 26. b4 {[%clk 0:00:08]}  Kf8 {[%clk 0:00:39]} 27. Re4 {[%clk 0:00:06]}  f6 {[%clk 0:00:34]} 28. Ke3 {[%clk 0:00:05]}  Ke7 {[%clk 0:00:32]} 29. Rxe5+ {[%clk 0:00:04]}  fxe5 {[%clk 0:00:31]} 30. Bxh7 {[%clk 0:00:04]}  a5 {[%clk 0:00:28]} 31. a3 {[%clk 0:00:04]}  Kf6 {[%clk 0:00:20]} 32. Be4 {[%clk 0:00:02]}  Bd1 {[%clk 0:00:18]} 33. g3 {[%clk 0:00:02]}  Bb3 {[%clk 0:00:18]} 34. Kd3 {[%clk 0:00:02]}  g5 {[%clk 0:00:17]} 35. Kc3 {[%clk 0:00:02]}  Bd1 {[%clk 0:00:16]} 36. bxa5 {[%clk 0:00:02]}  bxa5 {[%clk 0:00:16]} 37. c5 {[%clk 0:00:03]}  dxc5 {[%clk 0:00:16]} 38. Kc4 {[%clk 0:00:03]}  Ke7 {[%clk 0:00:11]} 39. Kxc5 {[%clk 0:00:04]}  Kd8 {[%clk 0:00:11]} 40. d6 {[%clk 0:00:04]}  Bb3 {[%clk 0:00:10]} 41. Kc6 {[%clk 0:00:04]}  Ba4+ {[%clk 0:00:08]} 42. Kb6 {[%clk 0:00:04]}  Kd7 {[%clk 0:00:08]} 43. Kxa5 {[%clk 0:00:04]}  Bd1 {[%clk 0:00:07]} 44. Kb6 {[%clk 0:00:04]}  Kxd6 {[%clk 0:00:07]} 45. Bc6 {[%clk 0:00:03]}  Bc2 {[%clk 0:00:06]} 46. a4 {[%clk 0:00:03]}  e4 {[%clk 0:00:06]} 47. a5 {[%clk 0:00:03]}  e3 {[%clk 0:00:07]} 48. Bf3 {[%clk 0:00:03]}  Bd3 {[%clk 0:00:05]} 49. a6 {[%clk 0:00:03]}  e2 {[%clk 0:00:04]} 50. Bxe2 {[%clk 0:00:02]}  Bxe2 {[%clk 0:00:04]} 51. Kb7 {[%clk 0:00:02]}  Bf3+ {[%clk 0:00:04]} 52. Kb8 {[%clk 0:00:02]}  Ke5 {[%clk 0:00:04]} 53. h4 {[%clk 0:00:02]}  gxh4 {[%clk 0:00:03]} 54. gxh4 {[%clk 0:00:02]}  Kf5 {[%clk 0:00:04]} 55. a7 {[%clk 0:00:02]}  Kg4 {[%clk 0:00:04]} 56. a8=Q {[%clk 0:00:02]}  Bxa8 {[%clk 0:00:04]} 57. Kxa8 {[%clk 0:00:03]}  Kxh4 {[%clk 0:00:04]} 1/2-1/2


[Site "https://www.chess.com"]

[Event "Titled Tuesday Blitz July 18 Early 2023"]
[White "Cardenas Carbajal, Nilson"]
[Black "Davidson, Kevin"]
[WhiteFideId "8401128"]
[BlackFideId "2056810"]
[WhiteElo "2178"]
[BlackElo "2338"]
[Result "0-1"]
[Round "11"]
[TimeControl "180+2"]
[Date "2023.07.18"]
[WhiteClock "0:00:00"]
[BlackClock "0:00:09"]
[Board "128"]

1. e4 {[%clk 0:03:00]}  c5 {[%clk 0:02:42]} 2. d4 {[%clk 0:03:00]}  cxd4 {[%clk 0:02:39]} 3. c3 {[%clk 0:03:01]}  dxc3 {[%clk 0:02:40]} 4. Nxc3 {[%clk 0:03:01]}  Nc6 {[%clk 0:02:40]} 5. Nf3 {[%clk 0:03:01]}  e6 {[%clk 0:02:40]} 6. Bc4 {[%clk 0:03:00]}  a6 {[%clk 0:02:40]} 7. O-O {[%clk 0:03:00]}  b5 {[%clk 0:02:40]} 8. Bb3 {[%clk 0:02:59]}  Na5 {[%clk 0:02:39]} 9. Re1 {[%clk 0:02:27]}  Nxb3 {[%clk 0:02:37]} 10. axb3 {[%clk 0:02:25]}  Bb7 {[%clk 0:02:35]} 11. Be3 {[%clk 0:02:03]}  Nf6 {[%clk 0:02:28]} 12. Nd5 {[%clk 0:02:00]}  Nxd5 {[%clk 0:02:12]} 13. exd5 {[%clk 0:01:57]}  Bxd5 {[%clk 0:01:56]} 14. Bb6 {[%clk 0:01:08]}  Qxb6 {[%clk 0:01:56]} 15. Qxd5 {[%clk 0:01:07]}  Qc6 {[%clk 0:01:41]} 16. Qe5 {[%clk 0:01:02]}  Rc8 {[%clk 0:01:03]} 17. Nd4 {[%clk 0:00:58]}  Qc5 {[%clk 0:01:02]} 18. Qf4 {[%clk 0:00:44]}  Bd6 {[%clk 0:00:58]} 19. Qg4 {[%clk 0:00:15]}  O-O {[%clk 0:00:53]} 20. h4 {[%clk 0:00:14]}  f5 {[%clk 0:00:41]} 21. Qg5 {[%clk 0:00:11]}  Qxd4 {[%clk 0:00:39]} 22. Rxa6 {[%clk 0:00:07]}  Bc5 {[%clk 0:00:35]} 23. Rf1 {[%clk 0:00:05]}  Ra8 {[%clk 0:00:29]} 24. Rxa8 {[%clk 0:00:04]}  Rxa8 {[%clk 0:00:29]} 25. h5 {[%clk 0:00:05]}  h6 {[%clk 0:00:21]} 26. Qg6 {[%clk 0:00:04]}  Qf6 {[%clk 0:00:18]} 27. Qg3 {[%clk 0:00:05]}  f4 {[%clk 0:00:15]} 28. Qf3 {[%clk 0:00:05]}  Rf8 {[%clk 0:00:13]} 29. Rd1 {[%clk 0:00:04]}  d5 {[%clk 0:00:12]} 30. b4 {[%clk 0:00:02]}  Bd6 {[%clk 0:00:11]} 31. Qb3 {[%clk 0:00:01]}  f3 {[%clk 0:00:10]} 32. g3 {[%clk 0:00:00]}  Qg5 {[%clk 0:00:09]} 0-1


[Site "https://www.chess.com"]

[Event "Titled Tuesday Blitz July 18 Early 2023"]
[White "Clawitter, Craig"]
[Black "Feliz Dotel, Dewar Bienvenido"]
[WhiteFideId "2023105"]
[BlackFideId "6402801"]
[WhiteElo "2272"]
[BlackElo "2065"]
[Result "1-0"]
[Round "11"]
[TimeControl "180+2"]
[Date "2023.07.18"]
[WhiteClock "0:00:20"]
[BlackClock "0:00:00"]
[Board "132"]

1. e4 {[%clk 0:03:00]}  e5 {[%clk 0:02:58]} 2. Nf3 {[%clk 0:03:00]}  Nc6 {[%clk 0:02:57]} 3. Bb5 {[%clk 0:03:00]}  Nf6 {[%clk 0:02:56]} 4. d3 {[%clk 0:03:00]}  Ne7 {[%clk 0:02:55]} 5. O-O {[%clk 0:02:53]}  c6 {[%clk 0:02:55]} 6. Ba4 {[%clk 0:02:52]}  Ng6 {[%clk 0:02:56]} 7. Nc3 {[%clk 0:02:42]}  Be7 {[%clk 0:02:55]} 8. d4 {[%clk 0:02:41]}  d6 {[%clk 0:02:34]} 9. Re1 {[%clk 0:02:34]}  O-O {[%clk 0:02:32]} 10. h3 {[%clk 0:02:29]}  a5 {[%clk 0:02:30]} 11. a3 {[%clk 0:02:15]}  b5 {[%clk 0:02:29]} 12. Bb3 {[%clk 0:02:15]}  a4 {[%clk 0:01:30]} 13. Ba2 {[%clk 0:02:12]}  Qb6 {[%clk 0:01:24]} 14. Be3 {[%clk 0:02:06]}  Qc7 {[%clk 0:01:13]} 15. Qd2 {[%clk 0:01:48]}  Re8 {[%clk 0:01:11]} 16. Rad1 {[%clk 0:01:47]}  Nh5 {[%clk 0:01:04]} 17. Bg5 {[%clk 0:01:17]}  Nhf4 {[%clk 0:00:56]} 18. Ne2 {[%clk 0:01:09]}  Bxg5 {[%clk 0:00:54]} 19. Nxg5 {[%clk 0:01:08]}  Be6 {[%clk 0:00:39]} 20. d5 {[%clk 0:00:50]}  cxd5 {[%clk 0:00:35]} 21. Nxe6 {[%clk 0:00:44]}  fxe6 {[%clk 0:00:31]} 22. Nxf4 {[%clk 0:00:39]}  Nxf4 {[%clk 0:00:23]} 23. exd5 {[%clk 0:00:39]}  exd5 {[%clk 0:00:12]} 24. Bxd5+ {[%clk 0:00:40]}  Nxd5 {[%clk 0:00:12]} 25. Qxd5+ {[%clk 0:00:41]}  Kh8 {[%clk 0:00:10]} 26. c3 {[%clk 0:00:31]}  Rad8 {[%clk 0:00:08]} 27. Qxb5 {[%clk 0:00:31]}  Qf7 {[%clk 0:00:08]} 28. Qxa4 {[%clk 0:00:26]}  Rf8 {[%clk 0:00:08]} 29. Qc2 {[%clk 0:00:25]}  Rb8 {[%clk 0:00:07]} 30. b4 {[%clk 0:00:24]}  Qf6 {[%clk 0:00:07]} 31. c4 {[%clk 0:00:23]}  Ra8 {[%clk 0:00:06]} 32. a4 {[%clk 0:00:22]}  Rab8 {[%clk 0:00:04]} 33. b5 {[%clk 0:00:22]}  Rfc8 {[%clk 0:00:03]} 34. Rd5 {[%clk 0:00:22]}  Qe6 {[%clk 0:00:03]} 35. Red1 {[%clk 0:00:22]}  Rd8 {[%clk 0:00:00]} 36. c5 {[%clk 0:00:20]} 1-0


[Site "https://www.chess.com"]

[Event "Titled Tuesday Blitz July 18 Early 2023"]
[White "Cardozo Munar, Carlos Eduardo"]
[Black "Slovineanu, Viacheslav"]
[WhiteFideId "4409477"]
[BlackFideId "13900510"]
[WhiteElo "2255"]
[BlackElo "2342"]
[Result "0-1"]
[Round "11"]
[TimeControl "180+2"]
[Date "2023.07.18"]
[WhiteClock "0:00:00"]
[BlackClock "0:01:05"]
[Board "133"]

1. e4 {[%clk 0:02:29]}  c6 {[%clk 0:02:57]} 2. Nf3 {[%clk 0:02:29]}  d5 {[%clk 0:02:58]} 3. Nc3 {[%clk 0:02:29]}  dxe4 {[%clk 0:02:57]} 4. Nxe4 {[%clk 0:02:28]}  Nf6 {[%clk 0:02:58]} 5. Ng3 {[%clk 0:02:27]}  c5 {[%clk 0:02:56]} 6. Bc4 {[%clk 0:02:27]}  e6 {[%clk 0:02:56]} 7. O-O {[%clk 0:02:27]}  Nc6 {[%clk 0:02:56]} 8. Re1 {[%clk 0:02:26]}  Be7 {[%clk 0:02:54]} 9. Nf5 {[%clk 0:02:25]}  exf5 {[%clk 0:02:49]} 10. d3 {[%clk 0:02:22]}  O-O {[%clk 0:02:46]} 11. a3 {[%clk 0:02:22]}  Bd6 {[%clk 0:02:39]} 12. Bg5 {[%clk 0:02:21]}  h6 {[%clk 0:02:38]} 13. Bh4 {[%clk 0:02:21]}  Be6 {[%clk 0:02:00]} 14. Bxe6 {[%clk 0:01:58]}  fxe6 {[%clk 0:02:00]} 15. Rxe6 {[%clk 0:01:45]}  Qd7 {[%clk 0:02:00]} 16. Re2 {[%clk 0:01:34]}  g5 {[%clk 0:01:53]} 17. Bxg5 {[%clk 0:01:19]}  hxg5 {[%clk 0:01:53]} 18. Nxg5 {[%clk 0:01:20]}  Rae8 {[%clk 0:01:49]} 19. Re3 {[%clk 0:01:19]}  Rxe3 {[%clk 0:01:42]} 20. fxe3 {[%clk 0:01:20]}  Ng4 {[%clk 0:01:36]} 21. Qf3 {[%clk 0:01:08]}  Qe7 {[%clk 0:01:33]} 22. Qd5+ {[%clk 0:00:45]}  Kh8 {[%clk 0:01:33]} 23. Nh3 {[%clk 0:00:07]}  Qxe3+ {[%clk 0:01:23]} 24. Kh1 {[%clk 0:00:07]}  Qe5 {[%clk 0:01:22]} 25. Qxe5+ {[%clk 0:00:05]}  Bxe5 {[%clk 0:01:22]} 26. Re1 {[%clk 0:00:06]}  Bxb2 {[%clk 0:01:21]} 27. Rb1 {[%clk 0:00:06]}  Re8 {[%clk 0:01:18]} 28. Ng5 {[%clk 0:00:03]}  b6 {[%clk 0:01:08]} 29. h3 {[%clk 0:00:03]}  Bf6 {[%clk 0:01:05]} 30. a4 {[%clk 0:00:00]}  Bxg5 {[%clk 0:01:05]} 0-1


[Site "https://www.chess.com"]